[Event "*** Titled Tuesday Blitz"]
[Site "Chess.com"]
[Date "2018.04.03"]
[Round "3"]
[White "Batica1984"]
[Black "Hikaru"]
[Result "0-1"]
[WhiteElo "2606"]
[BlackElo "2992"]
[TimeControl "180+2"]
[EndTime "13:35:17 PDT"]
[Termination "Hikaru won by resignation"]

1. e4 {[%clk 0:03:01.9]} 1... e5 {[%clk 0:02:53.3]} 2. Nf3 {[%clk 0:03:01.8]}
2... Nc6 {[%clk 0:02:53.9]} 3. Nc3 {[%clk 0:03:00.6]} 3... Nf6 {[%clk
0:02:54.6]} 4. Bb5 {[%clk 0:03:00.3]} 4... Nd4 {[%clk 0:02:50.2]} 5. Bc4 {[%clk
0:02:59.5]} 5... Bc5 {[%clk 0:02:50.1]} 6. d3 {[%clk 0:02:57.8]} 6... d6 {[%clk
0:02:47.4]} 7. Na4 {[%clk 0:02:54.6]} 7... Bg4 {[%clk 0:02:36.3]} 8. Nxc5 {[%clk
0:02:47.7]} 8... dxc5 {[%clk 0:02:35.2]} 9. Bxf7+ {[%clk 0:02:46.7]} 9... Kxf7
{[%clk 0:02:28.2]} 10. Nxe5+ {[%clk 0:02:46.9]} 10... Kf8 {[%clk 0:02:29.7]} 11.
Nxg4 {[%clk 0:02:46.9]} 11... Nxg4 {[%clk 0:02:31.6]} 12. c3 {[%clk 0:02:43.3]}
12... Qh4 {[%clk 0:02:26]} 13. g3 {[%clk 0:02:33]} 13... Qf6 {[%clk 0:02:08.6]}
14. Qxg4 {[%clk 0:02:01]} 14... Nc2+ {[%clk 0:02:09.3]} 15. Ke2 {[%clk
0:02:01.5]} 15... Nxa1 {[%clk 0:02:08.6]} 16. Be3 {[%clk 0:02:01.5]} 16... b6
{[%clk 0:02:03.6]} 17. Rxa1 {[%clk 0:02:00.7]} 17... h6 {[%clk 0:02:05]} 18. f4
{[%clk 0:01:53.4]} 18... Re8 {[%clk 0:02:01.6]} 19. e5 {[%clk 0:01:51.3]} 19...
Qc6 {[%clk 0:02:02.2]} 20. Qf3 {[%clk 0:01:49]} 20... Qb5 {[%clk 0:02:03.1]} 21.
b3 {[%clk 0:01:47]} 21... Qd7 {[%clk 0:01:58]} 22. Rd1 {[%clk 0:01:45]} 22...
Qh3 {[%clk 0:01:57.6]} 23. d4 {[%clk 0:01:41.6]} 23... cxd4 {[%clk 0:01:56]} 24.
cxd4 {[%clk 0:01:42.2]} 24... Qxh2+ {[%clk 0:01:56.6]} 25. Bf2 {[%clk
0:01:43.2]} 25... Qh3 {[%clk 0:01:58.2]} 26. d5 {[%clk 0:01:42.9]} 26... Qf5
{[%clk 0:01:57.1]} 27. Rc1 {[%clk 0:01:40.3]} 27... Re7 {[%clk 0:01:58.1]} 28.
g4 {[%clk 0:01:38.6]} 28... Qd7 {[%clk 0:01:58.3]} 29. Rc6 {[%clk 0:01:27.1]}
29... h5 {[%clk 0:01:50]} 30. e6 {[%clk 0:01:20.9]} 30... hxg4 {[%clk
0:01:48.3]} 31. Qe4 {[%clk 0:01:18.8]} 31... Qe8 {[%clk 0:01:49]} 32. Qf5+
{[%clk 0:01:11.5]} 32... Kg8 {[%clk 0:01:49.9]} 33. Qe5 {[%clk 0:00:36.9]} 33...
Rh2 {[%clk 0:01:38]} 34. f5 {[%clk 0:00:30.1]} 34... g3 {[%clk 0:01:38.4]} 35.
Qxg3 {[%clk 0:00:29.8]} 35... Qh5+ {[%clk 0:01:40]} 36. Kf1 {[%clk 0:00:27.3]}
36... Qd1+ {[%clk 0:01:38.7]} 37. Be1 {[%clk 0:00:28.1]} 37... Rh1+ {[%clk
0:01:27.1]} 38. Kg2 {[%clk 0:00:25.7]} 38... Qxd5+ {[%clk 0:01:25.6]} 0-1

[Event "*** Titled Tuesday Blitz"]
[Site "Chess.com"]
[Date "2018.04.03"]
[Round "3"]
[White "2L8IWUN"]
[Black "ilmago"]
[Result "0-1"]
[WhiteElo "2091"]
[BlackElo "1927"]
[TimeControl "180+2"]
[EndTime "13:35:19 PDT"]
[Termination "ilmago won by resignation"]

1. e4 {[%clk 0:03:01.9]} 1... c5 {[%clk 0:03:00]} 2. Nf3 {[%clk 0:03:01.3]} 2...
d6 {[%clk 0:03:00.9]} 3. d4 {[%clk 0:03:02.3]} 3... cxd4 {[%clk 0:03:02.8]} 4.
Nxd4 {[%clk 0:03:03.9]} 4... Nf6 {[%clk 0:03:02.8]} 5. Nc3 {[%clk 0:03:05]} 5...
e6 {[%clk 0:03:02.9]} 6. g4 {[%clk 0:03:03.4]} 6... h6 {[%clk 0:03:01.6]} 7. h4
{[%clk 0:02:35.6]} 7... Nc6 {[%clk 0:03:00.8]} 8. Rg1 {[%clk 0:02:29.8]} 8... d5
{[%clk 0:02:53.3]} 9. exd5 {[%clk 0:02:24.7]} 9... Nxd5 {[%clk 0:02:51.5]} 10.
Nxd5 {[%clk 0:02:22.8]} 10... Qxd5 {[%clk 0:02:44.6]} 11. Bg2 {[%clk 0:02:19.2]}
11... Qe5+ {[%clk 0:02:36.7]} 12. Be3 {[%clk 0:02:13.9]} 12... Nxd4 {[%clk
0:02:19.4]} 13. Qxd4 {[%clk 0:02:08.1]} 13... Qxd4 {[%clk 0:02:21.3]} 14. Bxd4
{[%clk 0:02:09.8]} 14... f6 {[%clk 0:02:21.8]} 15. f4 {[%clk 0:02:04.3]} 15...
Bd6 {[%clk 0:02:19.2]} 16. Be3 {[%clk 0:01:49]} 16... Ke7 {[%clk 0:02:09.9]} 17.
O-O-O {[%clk 0:01:48.5]} 17... Rb8 {[%clk 0:01:59.5]} 18. Kb1 {[%clk 0:01:44.8]}
18... b6 {[%clk 0:01:59.7]} 19. Rd2 {[%clk 0:01:37.3]} 19... Bb7 {[%clk
0:01:59.3]} 20. Rgd1 {[%clk 0:01:30.4]} 20... Rhd8 {[%clk 0:01:57.7]} 21. Bxb7
{[%clk 0:01:21.7]} 21... Rxb7 {[%clk 0:01:57.8]} 22. g5 {[%clk 0:01:17.9]} 22...
hxg5 {[%clk 0:01:56.2]} 23. hxg5 {[%clk 0:01:16.6]} 23... Rbd7 {[%clk
0:01:56.3]} 24. gxf6+ {[%clk 0:01:15.2]} 24... gxf6 {[%clk 0:01:56]} 25. Bd4
{[%clk 0:01:12.5]} 25... e5 {[%clk 0:01:37.1]} 26. Bc3 {[%clk 0:01:05]} 26...
exf4 {[%clk 0:01:29.4]} 27. Re2+ {[%clk 0:00:50.6]} 27... Be5 {[%clk 0:01:25.9]}
28. Rxd7+ {[%clk 0:00:40.7]} 28... Rxd7 {[%clk 0:01:27.8]} 29. Kc1 {[%clk
0:00:38.6]} 29... Ke6 {[%clk 0:01:26.4]} 30. Bd2 {[%clk 0:00:36.6]} 30... Kf5
{[%clk 0:01:26.5]} 31. c3 {[%clk 0:00:35]} 31... Rh7 {[%clk 0:01:25.3]} 32. Kc2
{[%clk 0:00:35.4]} 32... f3 {[%clk 0:01:23.1]} 33. Rf2 {[%clk 0:00:33.9]} 33...
Ke4 {[%clk 0:01:22.2]} 34. a4 {[%clk 0:00:31.2]} 34... Rh1 {[%clk 0:01:20.2]}
35. a5 {[%clk 0:00:28.3]} 35... Bg3 {[%clk 0:01:19.6]} 36. Rxf3 {[%clk
0:00:18.1]} 0-1

[Event "*** Titled Tuesday Blitz"]
[Site "Chess.com"]
[Date "2018.04.03"]
[Round "3"]
[White "VerdeNotte"]
[Black "Rodalquilar"]
[Result "1-0"]
[WhiteElo "2637"]
[BlackElo "2444"]
[TimeControl "180+2"]
[EndTime "13:35:28 PDT"]
[Termination "VerdeNotte won on time"]

1. b3 {[%clk 0:03:01.9]} 1... d5 {[%clk 0:03:00.1]} 2. Bb2 {[%clk 0:03:02.5]}
2... Bf5 {[%clk 0:03:01.7]} 3. Nf3 {[%clk 0:03:02]} 3... e6 {[%clk 0:03:03.1]}
4. g3 {[%clk 0:03:02.9]} 4... Nf6 {[%clk 0:03:03.7]} 5. d3 {[%clk 0:03:03]} 5...
h6 {[%clk 0:03:03.5]} 6. Bg2 {[%clk 0:03:04.1]} 6... Be7 {[%clk 0:03:04.7]} 7.
O-O {[%clk 0:03:05.1]} 7... O-O {[%clk 0:03:05.9]} 8. Nbd2 {[%clk 0:03:06.3]}
8... Bh7 {[%clk 0:03:06.5]} 9. Qe1 {[%clk 0:03:05.9]} 9... c5 {[%clk 0:03:05.4]}
10. e4 {[%clk 0:03:06.8]} 10... Nc6 {[%clk 0:03:06.8]} 11. Ne5 {[%clk
0:03:06.6]} 11... Nxe5 {[%clk 0:02:45.2]} 12. Bxe5 {[%clk 0:03:08.5]} 12... Re8
{[%clk 0:02:46.8]} 13. Qe2 {[%clk 0:02:57.6]} 13... Rc8 {[%clk 0:02:45.6]} 14.
Rae1 {[%clk 0:02:55.6]} 14... b5 {[%clk 0:02:31.1]} 15. c4 {[%clk 0:02:17.1]}
15... bxc4 {[%clk 0:02:21.5]} 16. dxc4 {[%clk 0:02:12.9]} 16... d4 {[%clk
0:01:57.8]} 17. Bxf6 {[%clk 0:02:13.4]} 17... Bxf6 {[%clk 0:01:56]} 18. e5
{[%clk 0:02:14.5]} 18... Be7 {[%clk 0:01:57.5]} 19. Be4 {[%clk 0:02:14.9]} 19...
Bxe4 {[%clk 0:01:48]} 20. Nxe4 {[%clk 0:02:14.8]} 20... a5 {[%clk 0:01:48.4]}
21. Qd3 {[%clk 0:02:09.4]} 21... Qd7 {[%clk 0:01:43.2]} 22. f4 {[%clk
0:02:06.2]} 22... a4 {[%clk 0:01:38.4]} 23. g4 {[%clk 0:02:07.2]} 23... axb3
{[%clk 0:01:37.9]} 24. axb3 {[%clk 0:02:09.1]} 24... Rb8 {[%clk 0:01:14.7]} 25.
f5 {[%clk 0:02:03.6]} 25... exf5 {[%clk 0:01:16.6]} 26. gxf5 {[%clk 0:02:04.2]}
26... Bh4 {[%clk 0:01:17.5]} 27. Ng3 {[%clk 0:01:56.3]} 27... Bxg3 {[%clk
0:01:14.4]} 28. Qxg3 {[%clk 0:01:55.7]} 28... d3 {[%clk 0:01:05.7]} 29. f6
{[%clk 0:01:56.5]} 29... Qd4+ {[%clk 0:01:06.7]} 30. Kh1 {[%clk 0:01:33.5]}
30... g5 {[%clk 0:00:44.3]} 31. e6 {[%clk 0:01:34.6]} 31... d2 {[%clk
0:00:31.8]} 32. exf7+ {[%clk 0:01:33.5]} 32... Kxf7 {[%clk 0:00:33.7]} 33. Re7+
{[%clk 0:01:22.1]} 33... Kf8 {[%clk 0:00:13.2]} 34. Qc7 {[%clk 0:01:22.5]} 1-0

[Event "*** Titled Tuesday Blitz"]
[Site "Chess.com"]
[Date "2018.04.03"]
[Round "3"]
[White "GM_dmitrij"]
[Black "popov_m"]
[Result "1-0"]
[WhiteElo "2689"]
[BlackElo "2434"]
[TimeControl "180+2"]
[EndTime "13:35:34 PDT"]
[Termination "GM_dmitrij won by checkmate"]

1. e4 {[%clk 0:02:58.6]} 1... g6 {[%clk 0:03:00.6]} 2. d4 {[%clk 0:02:59.5]}
2... Bg7 {[%clk 0:03:02.1]} 3. Nc3 {[%clk 0:03:01.1]} 3... d6 {[%clk 0:03:03.6]}
4. f4 {[%clk 0:03:02.5]} 4... Nf6 {[%clk 0:03:03.8]} 5. Nf3 {[%clk 0:03:03.4]}
5... O-O {[%clk 0:03:04.8]} 6. e5 {[%clk 0:03:04.2]} 6... dxe5 {[%clk
0:03:04.7]} 7. fxe5 {[%clk 0:03:06.1]} 7... Nd5 {[%clk 0:03:06.1]} 8. Bc4 {[%clk
0:03:07.1]} 8... Nxc3 {[%clk 0:03:06.6]} 9. bxc3 {[%clk 0:03:09]} 9... c5 {[%clk
0:03:08.2]} 10. O-O {[%clk 0:03:09.5]} 10... Nc6 {[%clk 0:03:05.5]} 11. Ng5
{[%clk 0:03:00.1]} 11... e6 {[%clk 0:02:25.9]} 12. Be3 {[%clk 0:03:00]} 12...
Ne7 {[%clk 0:02:06]} 13. Ne4 {[%clk 0:02:54.4]} 13... Nf5 {[%clk 0:01:57]} 14.
Bg5 {[%clk 0:02:46.6]} 14... Qa5 {[%clk 0:01:50.3]} 15. g4 {[%clk 0:02:34.6]}
15... b5 {[%clk 0:01:16.2]} 16. Bd3 {[%clk 0:02:29.2]} 16... c4 {[%clk
0:01:15.4]} 17. Be2 {[%clk 0:02:30.3]} 17... Bb7 {[%clk 0:01:15.2]} 18. Bf3
{[%clk 0:02:31.6]} 18... Bxe4 {[%clk 0:00:35.6]} 19. Bxe4 {[%clk 0:02:33.5]}
19... Qxc3 {[%clk 0:00:37]} 20. gxf5 {[%clk 0:02:33.9]} 20... Rac8 {[%clk
0:00:21.4]} 21. f6 {[%clk 0:02:33.8]} 21... Bh8 {[%clk 0:00:21.2]} 22. Qd2
{[%clk 0:02:32.4]} 22... Qa3 {[%clk 0:00:22.1]} 23. c3 {[%clk 0:02:26.2]} 23...
b4 {[%clk 0:00:23.4]} 24. cxb4 {[%clk 0:02:24.8]} 24... Rfd8 {[%clk 0:00:24.3]}
25. Qe3 {[%clk 0:02:21.7]} 25... Qxb4 {[%clk 0:00:24.3]} 26. Rab1 {[%clk
0:02:20.4]} 26... Qa5 {[%clk 0:00:23.4]} 27. Rfc1 {[%clk 0:02:15.9]} 27... Qxa2
{[%clk 0:00:18.3]} 28. Ra1 {[%clk 0:02:13.3]} 28... Qb2 {[%clk 0:00:14]} 29. Qc3
{[%clk 0:02:13.4]} 29... Qxc3 {[%clk 0:00:13.8]} 30. Rxc3 {[%clk 0:02:15.3]}
30... Rxd4 {[%clk 0:00:15.4]} 31. Bb7 {[%clk 0:02:08.3]} 31... Rc7 {[%clk
0:00:08.7]} 32. Rxa7 {[%clk 0:02:03.4]} 32... Rd8 {[%clk 0:00:09.7]} 33. Ra8
{[%clk 0:02:03.6]} 33... Rxa8 {[%clk 0:00:09.2]} 34. Bxa8 {[%clk 0:02:05.5]}
34... Rc5 {[%clk 0:00:08.5]} 35. Bf4 {[%clk 0:02:03.9]} 35... g5 {[%clk
0:00:08.3]} 36. Bg3 {[%clk 0:02:05]} 36... h5 {[%clk 0:00:08.4]} 37. h3 {[%clk
0:02:06.4]} 37... Kh7 {[%clk 0:00:08.3]} 38. Be4+ {[%clk 0:02:07.3]} 38... Kh6
{[%clk 0:00:09.5]} 39. h4 {[%clk 0:02:08.1]} 39... Rc8 {[%clk 0:00:03.4]} 40.
Kg2 {[%clk 0:02:09.3]} 40... Rc5 {[%clk 0:00:04]} 41. Kf3 {[%clk 0:02:10.4]}
41... g4+ {[%clk 0:00:04.1]} 42. Ke3 {[%clk 0:02:11.2]} 42... Bxf6 {[%clk
0:00:06]} 43. exf6 {[%clk 0:02:11.9]} 43... e5 {[%clk 0:00:07.1]} 44. Ke2 {[%clk
0:02:06.2]} 44... Rb5 {[%clk 0:00:06.6]} 45. Bf2 {[%clk 0:02:05.9]} 45... Rb2+
{[%clk 0:00:06]} 46. Rc2 {[%clk 0:02:07.4]} 46... Rxc2+ {[%clk 0:00:07.1]} 47.
Bxc2 {[%clk 0:02:09.3]} 47... g3 {[%clk 0:00:07.3]} 48. Be3# {[%clk 0:02:10.8]}
1-0

[Event "*** Titled Tuesday Blitz"]
[Site "Chess.com"]
[Date "2018.04.03"]
[Round "3"]
[White "GMAkobianSTL"]
[Black "dolynachess"]
[Result "1-0"]
[WhiteElo "2634"]
[BlackElo "2404"]
[TimeControl "180+2"]
[EndTime "13:35:53 PDT"]
[Termination "GMAkobianSTL won by resignation"]

1. d4 {[%clk 0:02:57.4]} 1... Nf6 {[%clk 0:03:00.2]} 2. c4 {[%clk 0:02:57]} 2...
c5 {[%clk 0:03:01.6]} 3. d5 {[%clk 0:02:56.5]} 3... b5 {[%clk 0:03:03.1]} 4.
cxb5 {[%clk 0:02:54.3]} 4... a6 {[%clk 0:03:04.4]} 5. bxa6 {[%clk 0:02:54.8]}
5... Bxa6 {[%clk 0:03:06.3]} 6. Nc3 {[%clk 0:02:55.1]} 6... d6 {[%clk
0:03:07.6]} 7. e4 {[%clk 0:02:56]} 7... Bxf1 {[%clk 0:03:07.9]} 8. Kxf1 {[%clk
0:02:54.3]} 8... Nbd7 {[%clk 0:03:09.8]} 9. Nge2 {[%clk 0:02:54.7]} 9... g6
{[%clk 0:03:11.7]} 10. h3 {[%clk 0:02:55.6]} 10... Bg7 {[%clk 0:03:13.6]} 11.
Kg1 {[%clk 0:02:55.1]} 11... O-O {[%clk 0:03:15.5]} 12. Kh2 {[%clk 0:02:52.5]}
12... Qa5 {[%clk 0:03:17]} 13. Qc2 {[%clk 0:02:52.9]} 13... Rfb8 {[%clk
0:03:18.4]} 14. Rb1 {[%clk 0:02:53.5]} 14... Ne8 {[%clk 0:03:19.4]} 15. Bg5
{[%clk 0:02:53.3]} 15... Kf8 {[%clk 0:03:19]} 16. Qd2 {[%clk 0:02:48.6]} 16...
Nc7 {[%clk 0:03:11.3]} 17. Bh6 {[%clk 0:02:48.1]} 17... Nb5 {[%clk 0:03:12.4]}
18. Bxg7+ {[%clk 0:02:48.5]} 18... Kxg7 {[%clk 0:03:12.9]} 19. Rhd1 {[%clk
0:02:48.4]} 19... Rb7 {[%clk 0:03:03.6]} 20. Nxb5 {[%clk 0:02:33]} 20... Qxd2
{[%clk 0:02:58.6]} 21. Rxd2 {[%clk 0:02:33.5]} 21... Rxb5 {[%clk 0:03:00.1]} 22.
b3 {[%clk 0:02:31.8]} 22... Ra3 {[%clk 0:02:52.3]} 23. Nc3 {[%clk 0:02:30.3]}
23... Rb4 {[%clk 0:02:50.4]} 24. Rc1 {[%clk 0:02:07]} 24... c4 {[%clk
0:02:35.6]} 25. Nb1 {[%clk 0:02:04.6]} 25... Ra5 {[%clk 0:02:13.9]} 26. Rxc4
{[%clk 0:02:00.7]} 26... Rxc4 {[%clk 0:02:12.9]} 27. bxc4 {[%clk 0:02:00.1]}
27... Ra4 {[%clk 0:01:42.5]} 28. Rc2 {[%clk 0:01:58.4]} 28... Nc5 {[%clk
0:01:29.5]} 29. f3 {[%clk 0:01:42.5]} 29... Kf6 {[%clk 0:01:30.1]} 30. Nd2
{[%clk 0:01:33.3]} 30... Ra3 {[%clk 0:01:22.8]} 31. Nb3 {[%clk 0:01:19.6]} 31...
Nxb3 {[%clk 0:01:18.2]} 32. axb3 {[%clk 0:01:19.5]} 32... Rxb3 {[%clk
0:01:20.1]} 33. c5 {[%clk 0:01:20.6]} 33... dxc5 {[%clk 0:01:21]} 34. Rxc5
{[%clk 0:01:21.3]} 34... g5 {[%clk 0:01:14.3]} 35. Rc6+ {[%clk 0:01:20.3]} 35...
Kg7 {[%clk 0:01:13.2]} 36. h4 {[%clk 0:01:19.2]} 36... h6 {[%clk 0:01:09.7]} 37.
Kh3 {[%clk 0:01:14]} 37... f6 {[%clk 0:01:03.4]} 38. h5 {[%clk 0:01:13.9]} 38...
Rb1 {[%clk 0:01:00.4]} 39. Kg4 {[%clk 0:01:12.8]} 39... Rh1 {[%clk 0:00:59.9]}
40. g3 {[%clk 0:01:13.4]} 40... Kf7 {[%clk 0:00:54.8]} 41. Rc7 {[%clk
0:01:13.8]} 41... Ke8 {[%clk 0:00:55.3]} 42. Kf5 {[%clk 0:01:11.8]} 42... Kd8
{[%clk 0:00:50.7]} 43. Ra7 {[%clk 0:01:12]} 43... Rxh5 {[%clk 0:00:51.5]} 44.
Ke6 {[%clk 0:01:11.3]} 44... g4 {[%clk 0:00:49.1]} 45. f4 {[%clk 0:01:07.7]}
45... Rh3 {[%clk 0:00:46.1]} 46. Ra8+ {[%clk 0:01:08]} 46... Kc7 {[%clk
0:00:47.1]} 47. Kxe7 {[%clk 0:01:08.9]} 47... Rxg3 {[%clk 0:00:48.6]} 48. d6+
{[%clk 0:01:09.7]} 1-0

[Event "*** Titled Tuesday Blitz"]
[Site "Chess.com"]
[Date "2018.04.03"]
[Round "3"]
[White "PowerThinking2650"]
[Black "Yurovskykh_Oleksandr"]
[Result "0-1"]
[WhiteElo "2229"]
[BlackElo "2365"]
[TimeControl "180+2"]
[EndTime "13:35:55 PDT"]
[Termination "Yurovskykh_Oleksandr won by resignation"]

1. e4 {[%clk 0:03:01.9]} 1... c5 {[%clk 0:02:58.4]} 2. Nf3 {[%clk 0:03:01.8]}
2... e6 {[%clk 0:02:59.2]} 3. d4 {[%clk 0:02:59.7]} 3... cxd4 {[%clk 0:03:01]}
4. Nxd4 {[%clk 0:03:00.9]} 4... Nc6 {[%clk 0:03:02.3]} 5. Nb5 {[%clk 0:03:00.7]}
5... d6 {[%clk 0:03:02.1]} 6. N1c3 {[%clk 0:02:59.6]} 6... a6 {[%clk 0:02:58.2]}
7. Nd4 {[%clk 0:02:58.2]} 7... Nf6 {[%clk 0:02:50]} 8. Nxc6 {[%clk 0:02:43.9]}
8... bxc6 {[%clk 0:02:50.7]} 9. Bd3 {[%clk 0:02:45.8]} 9... Be7 {[%clk
0:02:42.3]} 10. O-O {[%clk 0:02:45.1]} 10... O-O {[%clk 0:02:42.7]} 11. f4
{[%clk 0:02:44.6]} 11... d5 {[%clk 0:02:31.9]} 12. e5 {[%clk 0:02:44.3]} 12...
Nd7 {[%clk 0:02:24.1]} 13. Na4 {[%clk 0:02:37.6]} 13... a5 {[%clk 0:02:13.8]}
14. c4 {[%clk 0:02:37]} 14... Ba6 {[%clk 0:02:07.5]} 15. b3 {[%clk 0:02:35.1]}
15... f5 {[%clk 0:01:51.9]} 16. cxd5 {[%clk 0:02:15.5]} 16... cxd5 {[%clk
0:01:49.8]} 17. Be3 {[%clk 0:02:17]} 17... Qb8 {[%clk 0:01:37.2]} 18. Qe2 {[%clk
0:02:15.8]} 18... Bxd3 {[%clk 0:01:31.7]} 19. Qxd3 {[%clk 0:02:17.7]} 19... Rc8
{[%clk 0:01:33.2]} 20. Rfc1 {[%clk 0:02:18.5]} 20... Qb7 {[%clk 0:01:32.8]} 21.
h3 {[%clk 0:02:09.6]} 21... Ba3 {[%clk 0:01:09.2]} 22. Rf1 {[%clk 0:02:06.4]}
22... Qa6 {[%clk 0:01:04.7]} 23. Qd2 {[%clk 0:01:58.9]} 23... Nc5 {[%clk
0:00:56.3]} 24. Nxc5 {[%clk 0:01:57.8]} 24... Bxc5 {[%clk 0:00:58.2]} 25. Bxc5
{[%clk 0:01:56.5]} 25... Rxc5 {[%clk 0:01:00.1]} 26. Rac1 {[%clk 0:01:56.9]}
26... Rac8 {[%clk 0:01:01.2]} 27. Rxc5 {[%clk 0:01:54.1]} 27... Rxc5 {[%clk
0:01:03.1]} 28. Rc1 {[%clk 0:01:55.2]} 28... Qc6 {[%clk 0:00:58.7]} 29. Rxc5
{[%clk 0:01:54]} 29... Qxc5+ {[%clk 0:01:00.6]} 30. Kh2 {[%clk 0:01:55.3]} 30...
Kf7 {[%clk 0:01:00.7]} 31. Qd3 {[%clk 0:01:51.2]} 31... h6 {[%clk 0:00:54.6]}
32. Qa6 {[%clk 0:01:37.3]} 32... Qf2 {[%clk 0:00:55]} 33. Qb7+ {[%clk 0:01:21]}
33... Kg6 {[%clk 0:00:53.8]} 34. Qc6 {[%clk 0:01:08.6]} 34... Qxf4+ {[%clk
0:00:54.7]} 35. Kg1 {[%clk 0:01:09.1]} 35... Qxe5 {[%clk 0:00:52.9]} 36. Qe8+
{[%clk 0:01:10.2]} 36... Kh7 {[%clk 0:00:53.6]} 37. Qb5 {[%clk 0:01:11.2]} 37...
Qe3+ {[%clk 0:00:52.4]} 38. Kh2 {[%clk 0:01:11.7]} 38... d4 {[%clk 0:00:52.6]}
39. Qxa5 {[%clk 0:01:12]} 39... d3 {[%clk 0:00:53.9]} 40. Qc3 {[%clk 0:01:12.6]}
40... Qf4+ {[%clk 0:00:52.8]} 41. Kg1 {[%clk 0:01:13.7]} 41... d2 {[%clk
0:00:44.4]} 42. Qd3 {[%clk 0:01:14.5]} 42... e5 {[%clk 0:00:45.4]} 43. g3 {[%clk
0:01:11.6]} 43... Qd4+ {[%clk 0:00:46.2]} 44. Qxd4 {[%clk 0:00:54.6]} 44... exd4
{[%clk 0:00:48.1]} 0-1

[Event "*** Titled Tuesday Blitz"]
[Site "Chess.com"]
[Date "2018.04.03"]
[Round "3"]
[White "Saitama_Hero"]
[Black "toad"]
[Result "0-1"]
[WhiteElo "2131"]
[BlackElo "2260"]
[TimeControl "180+2"]
[EndTime "13:35:56 PDT"]
[Termination "toad won by resignation"]

1. d4 {[%clk 0:02:55.4]} 1... Nf6 {[%clk 0:03:00.6]} 2. c4 {[%clk 0:02:50.4]}
2... g6 {[%clk 0:03:01.7]} 3. Nc3 {[%clk 0:02:50.9]} 3... d5 {[%clk 0:03:02.7]}
4. Nf3 {[%clk 0:02:50.8]} 4... Bg7 {[%clk 0:03:03.4]} 5. Qb3 {[%clk 0:02:51.8]}
5... dxc4 {[%clk 0:03:03.4]} 6. Qxc4 {[%clk 0:02:52.8]} 6... O-O {[%clk
0:03:03.8]} 7. e4 {[%clk 0:02:54.2]} 7... a6 {[%clk 0:03:04.5]} 8. Be2 {[%clk
0:02:53.5]} 8... b5 {[%clk 0:03:04.8]} 9. Qb3 {[%clk 0:02:55]} 9... c5 {[%clk
0:03:04.6]} 10. dxc5 {[%clk 0:02:51.8]} 10... Bb7 {[%clk 0:03:04.3]} 11. e5
{[%clk 0:02:44.8]} 11... Nd5 {[%clk 0:02:57.5]} 12. O-O {[%clk 0:02:42.6]} 12...
Nxc3 {[%clk 0:02:54.1]} 13. Qxc3 {[%clk 0:02:35]} 13... Qc7 {[%clk 0:02:49.3]}
14. Bf4 {[%clk 0:02:33.3]} 14... Nd7 {[%clk 0:02:21.4]} 15. Rac1 {[%clk
0:02:32.1]} 15... Rac8 {[%clk 0:02:22]} 16. b4 {[%clk 0:02:30.7]} 16... Nb6
{[%clk 0:02:05.8]} 17. Bg3 {[%clk 0:02:17.7]} 17... Nd5 {[%clk 0:02:02.1]} 18.
Qa3 {[%clk 0:02:18.4]} 18... e6 {[%clk 0:01:55.6]} 19. c6 {[%clk 0:02:14.8]}
19... Bxc6 {[%clk 0:01:33.5]} 20. Nd4 {[%clk 0:02:15.7]} 20... Qb7 {[%clk
0:01:30.8]} 21. Rc5 {[%clk 0:02:10.7]} 21... Bd7 {[%clk 0:01:19.2]} 22. Rfc1
{[%clk 0:02:04.1]} 22... Rxc5 {[%clk 0:01:20]} 23. bxc5 {[%clk 0:02:05.4]} 23...
Ne7 {[%clk 0:01:08.9]} 24. Bf3 {[%clk 0:01:59.2]} 24... Nc6 {[%clk 0:00:58.4]}
25. Rd1 {[%clk 0:01:54.8]} 25... Rc8 {[%clk 0:00:52.7]} 26. Qd3 {[%clk
0:01:46.7]} 26... Qc7 {[%clk 0:00:32.8]} 27. Nxc6 {[%clk 0:01:32]} 27... Bxc6
{[%clk 0:00:32.6]} 28. Qd6 {[%clk 0:01:33.3]} 28... Bxf3 {[%clk 0:00:30.7]} 29.
Qxc7 {[%clk 0:01:33.1]} 29... Rxc7 {[%clk 0:00:30.9]} 30. Rd8+ {[%clk
0:01:32.3]} 30... Bf8 {[%clk 0:00:31.7]} 31. gxf3 {[%clk 0:01:29.2]} 31... Kg7
{[%clk 0:00:21.5]} 32. Bh4 {[%clk 0:01:29.1]} 32... Bxc5 {[%clk 0:00:18.9]} 33.
Bf6+ {[%clk 0:01:28.5]} 33... Kh6 {[%clk 0:00:19.7]} 34. Kg2 {[%clk 0:01:17.2]}
34... Be7 {[%clk 0:00:20]} 35. Rd4 {[%clk 0:01:13.5]} 35... Bxf6 {[%clk
0:00:19.5]} 36. exf6 {[%clk 0:01:15.4]} 36... Kg5 {[%clk 0:00:20.1]} 37. Rd6
{[%clk 0:01:12.4]} 37... Ra7 {[%clk 0:00:16.9]} 38. f4+ {[%clk 0:01:07.3]} 38...
Kxf6 {[%clk 0:00:17.5]} 39. Rb6 {[%clk 0:01:08.7]} 39... Ke7 {[%clk 0:00:14.3]}
40. Kf3 {[%clk 0:01:10.2]} 40... Kd7 {[%clk 0:00:14.9]} 41. Ke4 {[%clk
0:01:11.6]} 41... Kc7 {[%clk 0:00:15.5]} 0-1

[Event "*** Titled Tuesday Blitz"]
[Site "Chess.com"]
[Date "2018.04.03"]
[Round "3"]
[White "michaelk123"]
[Black "2Tilted"]
[Result "1-0"]
[WhiteElo "2375"]
[BlackElo "2274"]
[TimeControl "180+2"]
[EndTime "13:36:02 PDT"]
[Termination "michaelk123 won by resignation"]

1. e4 {[%clk 0:03:01.9]} 1... c5 {[%clk 0:03:00.5]} 2. Nf3 {[%clk 0:02:57]} 2...
e6 {[%clk 0:03:01.7]} 3. g3 {[%clk 0:02:52.9]} 3... Nc6 {[%clk 0:03:02.2]} 4.
Bg2 {[%clk 0:02:50.3]} 4... a6 {[%clk 0:02:58.9]} 5. O-O {[%clk 0:02:49.6]} 5...
Nge7 {[%clk 0:02:58]} 6. c3 {[%clk 0:02:34.3]} 6... d5 {[%clk 0:02:39.7]} 7. d3
{[%clk 0:02:30.3]} 7... g6 {[%clk 0:02:36.4]} 8. Nbd2 {[%clk 0:02:06.1]} 8...
Bg7 {[%clk 0:02:34.9]} 9. Qe2 {[%clk 0:02:06.6]} 9... O-O {[%clk 0:02:35.2]} 10.
h4 {[%clk 0:02:00.1]} 10... b5 {[%clk 0:02:17.7]} 11. Re1 {[%clk 0:01:57.8]}
11... Bb7 {[%clk 0:02:18.3]} 12. e5 {[%clk 0:01:51]} 12... Qb6 {[%clk
0:02:06.8]} 13. Nf1 {[%clk 0:01:47.3]} 13... h5 {[%clk 0:02:04.6]} 14. Bg5
{[%clk 0:01:43.6]} 14... Nf5 {[%clk 0:02:05.3]} 15. Ne3 {[%clk 0:01:24.8]} 15...
Nxe3 {[%clk 0:01:42.7]} 16. Qxe3 {[%clk 0:01:25.2]} 16... d4 {[%clk 0:01:41.5]}
17. Qf4 {[%clk 0:01:19.3]} 17... Rfe8 {[%clk 0:01:11.4]} 18. Bf6 {[%clk
0:01:19.3]} 18... Bf8 {[%clk 0:01:08.3]} 19. Ng5 {[%clk 0:01:17.2]} 19... Ne7
{[%clk 0:01:05.1]} 20. Be4 {[%clk 0:01:06.7]} 20... Nf5 {[%clk 0:01:02.6]} 21.
g4 {[%clk 0:00:54.9]} 21... hxg4 {[%clk 0:01:03.1]} 22. h5 {[%clk 0:00:55.7]}
22... Bxe4 {[%clk 0:00:53.4]} 23. dxe4 {[%clk 0:00:35.7]} 23... Nh6 {[%clk
0:00:50]} 24. Kg2 {[%clk 0:00:30.6]} 24... Ra7 {[%clk 0:00:48]} 25. Rh1 {[%clk
0:00:30.1]} 25... Qc6 {[%clk 0:00:37.7]} 26. Rh4 {[%clk 0:00:30.6]} 26... d3
{[%clk 0:00:35.8]} 27. Rah1 {[%clk 0:00:30.3]} 27... Nf5 {[%clk 0:00:20.2]} 28.
Qxg4 {[%clk 0:00:21.7]} 28... Nxh4+ {[%clk 0:00:21]} 29. Qxh4 {[%clk 0:00:22.7]}
29... Bg7 {[%clk 0:00:11.6]} 30. hxg6 {[%clk 0:00:22.4]} 30... fxg6 {[%clk
0:00:07.6]} 31. Qh8+ {[%clk 0:00:22.3]} 1-0